[Event "10th Cesme Open-B 2024"]
[Site "Cesme"]
[Date "2024.06.29"]
[Round "8"]
[White "Ilgaz, Yusuf Kerem"]
[Black "Buyuk, Eymen Eren"]
[Result "1/2-1/2"]
[ECO "C18"]
[WhiteElo "1966"]
[BlackElo "1894"]
[Annotator "RC"]
[PlyCount "122"]
[EventDate "2024.06.23"]
[EventType "swiss"]
[EventCountry "TUR"]
[SourceTitle "playchess.com"]
[Source "ChessBase"]
[SourceQuality "1"]
[TimeControl "5400+30"]

1. e4 {[%emt 0:01:00]} e6 {[%emt 0:01:00]} 2. d4 {[%emt 0:00:30]} d5 {[%emt 0:00:30]} 3. Nc3 {[%emt 0:00:00]} Bb4 {[%emt 0:00:30]} 4. e5 {[%emt 0:00:00]} c5 {[%emt 0:00:00]} 5. a3 {[%emt 0:00:00]} Bxc3+ {[%emt 0:00:00]} 6. bxc3 {[%emt 0:00:00]} Qa5 {[%emt 0:02:30]} 7. Bd2 {[%emt 0:00:00]} Qa4 {[%emt 0:00:30]} 8. Qg4 {[%emt 0:00:00]} g6 {[%emt 0:00:30]} 9. h4 {[%emt 0:00:00]} Qxc2 {[%emt 0:11:30]} 10. h5 {[%emt 0:03:00]} Ne7 {[%emt 0:04:30]} 11. Nf3 {[%emt 0:20:30]} Nbc6 {[%emt 0:07:30]} 12. dxc5 {[%emt 0:04:30]} Bd7 {[%emt 0:06:30]} 13. Rc1 {[%emt 0:08:30]} gxh5 {[%emt 0:09:30]} 14. Rxh5 {[%emt 0:04:30]} Qa2 {[%emt 0:03:30]} 15. Qg7 {[%emt 0:05:30]} Rg8 {[%emt 0:04:30]} 16. Qxh7 {[%emt 0:01:30]} O-O-O {[%emt 0:00:30]} 17. Qb1 {[%emt 0:10:30]} Qxa3 {[%emt 0:01:30]} 18. Qa1 {[%emt 0:01:30]} Qxa1 {[%emt 0:04:30]} 19. Rxa1 {[%emt 0:00:30]} Rh8 {[%emt 0:00:30]} 20. Rxh8 {[%emt 0:09:30]} Rxh8 {[%emt 0:00:30]} 21. Bf4 {[%emt 0:02:30]} Rh1 {[%emt 0:02:30]} 22. Kd2 {[%emt 0:01:30]} Ng6 {[%emt 0:02:30]} 23. Bg3 {[%emt 0:01:30]} Nce7 {[%emt 0:03:30]} 24. Re1 {[%emt 0:00:30]} Nf5 {[%emt 0:00:30]} 25. Bh2 {[%emt 0:04:30]} Ngh4 {[%emt 0:05:30]} 26. Nxh4 {[%emt 0:00:30]} Nxh4 {[%emt 0:00:30]} 27. Bg3 {[%emt 0:01:47]} Nf5 {[%emt 0:00:30]} 28. Bf4 {[%emt 0:00:26]} d4 {[%emt 0:06:30]} 29. cxd4 {[%emt 0:06:28]} Nxd4 {[%emt 0:00:30]} 30. Bc4 {[%emt 0:00:21]} Rxe1 {[%emt 0:02:30]} 31. Kxe1 {[%emt 0:00:13]} Kc7 {[%emt 0:00:00]} 32. Kd2 {[%emt 0:01:11]} Bc6 {[%emt 0:01:06]} 33. Kd3 {[%emt 0:00:30]} Nf5 {[%emt 0:00:30]} 34. g4 {[%emt 0:00:30]} Nh4 {[%emt 0:00:30]} 35. Bg3 {[%emt 0:00:30]} Nf3 {[%emt 0:01:24]} 36. Bf4 {[%emt 0:07:44]} a5 {[%emt 0:01:02]} 37. Kc3 {[%emt 0:00:58]} Be4 {[%emt 0:02:11]} 38. Bb5 {[%emt 0:00:33]} Bc6 {[%emt 0:02:35]} 39. Be2 {[%emt 0:01:28]} Ng1 {[%emt 0:01:05]} 40. Bd3 {[%emt 0:01:00]} Bf3 {[%emt 0:01:51]} 41. g5 {[%emt 0:04:19]} Kc6 {[%emt 0:05:49]} 42. Be3 {[%emt 0:00:18]} Kd5 {[%emt 0:00:55]} 43. g6 {[%emt 0:00:30]} fxg6 {[%emt 0:00:22]} 44. Bxg6 {[%emt 0:00:03]} Kxe5 {[%emt 0:00:45]} 45. Bd3 {[%emt 0:00:57]} Kf6 {[%emt 0:04:33]} 46. Kc4 {[%emt 0:00:27]} Bc6 {[%emt 0:00:18]} 47. Bd2 {[%emt 0:00:36]} a4 {[%emt 0:00:29]} 48. Be3 {[%emt 0:00:37]} Nf3 {[%emt 0:01:05]} 49. Kb4 {[%emt 0:00:08]} Ne1 {[%emt 0:00:24]} 50. Bh7 {[%emt 0:00:46]} e5 {[%emt 0:00:45]} 51. Bb1 {[%emt 0:00:14]} e4 {[%emt 0:00:32]} 52. Bd2 {[%emt 0:00:50]} Nf3 {[%emt 0:00:55]} 53. Bc3+ {[%emt 0:00:34]} Ke6 {[%emt 0:01:07]} 54. Bc2 {[%emt 0:00:20]} Kd5 {[%emt 0:00:32]} 55. Bb1 {[%emt 0:00:16]} Ke6 {[%emt 0:00:57]} 56. Bc2 {[%emt 0:00:08]} Ne5 {[%emt 0:00:29]} 57. Bxe5 {[%emt 0:01:26]} Kxe5 {[%emt 0:00:00]} 58. Bxa4 {[%emt 0:00:00]} Kd4 {[%emt 0:00:21]} 59. Bb5 {[%emt 0:00:37]} Kd5 {[%emt 0:00:39]} 60. Bc4+ {[%emt 0:00:53]} Ke5 {[%emt 0:00:12]} 61. Kc3 {[%emt 0:00:11]} b6 {[%emt 0:00:45]} 1/2-1/2

[Event "10th Cesme Open-B 2024"]
[Site "Cesme"]
[Date "2024.06.29"]
[Round "8"]
[White "Uzdemir, Ali Poyraz"]
[Black "Gonullu, Muhammed Sinan"]
[Result "0-1"]
[ECO "B06"]
[WhiteElo "1936"]
[BlackElo "1922"]
[Annotator "RC"]
[PlyCount "130"]
[EventDate "2024.06.23"]
[EventType "swiss"]
[EventCountry "TUR"]
[SourceTitle "playchess.com"]
[Source "ChessBase"]
[SourceQuality "1"]
[TimeControl "5400+30"]

1. e4 {[%emt 0:01:00]} g6 {[%emt 0:02:00]} 2. d4 {[%emt 0:00:30]} Bg7 {[%emt 0:00:30]} 3. Nf3 {[%emt 0:00:00]} c6 {[%emt 0:04:30]} 4. Bd3 {[%emt 0:00:00]} d5 {[%emt 0:00:30]} 5. e5 {[%emt 0:00:00]} c5 {[%emt 0:00:30]} 6. c3 {[%emt 0:03:00]} Nc6 {[%emt 0:00:30]} 7. h3 {[%emt 0:01:30]} cxd4 {[%emt 0:00:30]} 8. cxd4 {[%emt 0:00:30]} Nh6 {[%emt 0:00:30]} 9. Nc3 {[%emt 0:05:30]} O-O {[%emt 0:00:30]} 10. O-O {[%emt 0:02:30]} Nf5 {[%emt 0:00:30]} 11. Bc2 {[%emt 0:00:00]} b6 {[%emt 0:05:30]} 12. Bf4 {[%emt 0:02:00]} Bh6 {[%emt 0:22:30]} 13. Qd2 {[%emt 0:05:30]} Kg7 {[%emt 0:04:30]} 14. Rac1 {[%emt 0:05:30]} Na5 {[%emt 0:05:30]} 15. b3 {[%emt 0:02:30]} Bxf4 {[%emt 0:09:30]} 16. Qxf4 {[%emt 0:00:00]} Nh6 {[%emt 0:06:30]} 17. Rfe1 {[%emt 0:05:00]} Be6 {[%emt 0:01:30]} 18. Ne2 {[%emt 0:03:30]} Bf5 {[%emt 0:04:30]} 19. Ng3 {[%emt 0:07:30]} e6 {[%emt 0:07:30]} 20. Bxf5 {[%emt 0:08:30]} exf5 {[%emt 0:04:34]} 21. e6 {[%emt 0:01:30]} Qf6 {[%emt 0:05:13]} 22. Ng5 {[%emt 0:01:30]} Rae8 {[%emt 0:00:40]} 23. Re3 {[%emt 0:14:30]} Re7 {[%emt 0:00:30]} 24. h4 {[%emt 0:00:30]} Ng4 {[%emt 0:01:56]} 25. Rec3 {[%emt 0:10:38]} h6 {[%emt 0:02:09]} 26. Nxf7 {[%emt 0:02:07]} Rxe6 {[%emt 0:01:26]} 27. Ne5 {[%emt 0:00:30]} Qxh4 {[%emt 0:00:30]} 28. Rc7+ {[%emt 0:00:30]} Kg8 {[%emt 0:07:52]} 29. Nxg4 {[%emt 0:01:34]} fxg4 {[%emt 0:00:40]} 30. Rc8 {[%emt 0:01:00]} Ref6 {[%emt 0:00:57]} 31. Qe5 {[%emt 0:01:32]} Qg5 {[%emt 0:00:28]} 32. Qxg5 {[%emt 0:08:27]} hxg5 {[%emt 0:00:30]} 33. Rxf8+ {[%emt 0:00:31]} Kxf8 {[%emt 0:00:30]} 34. Rc8+ {[%emt 0:00:30]} Ke7 {[%emt 0:00:30]} 35. Nf1 {[%emt 0:01:02]} Rc6 {[%emt 0:00:46]} 36. Ra8 {[%emt 0:00:21]} Rc1 {[%emt 0:01:03]} 37. Rxa7+ {[%emt 0:00:08]} Kd8 {[%emt 0:00:05]} 38. Ra8+ {[%emt 0:01:31]} Kc7 {[%emt 0:00:26]} 39. Rg8 {[%emt 0:02:22]} Nc6 {[%emt 0:00:41]} 40. Rg7+ {[%emt 0:00:10]} Kc8 {[%emt 0:00:00]} 41. Rxg6 {[%emt 0:01:08]} Nxd4 {[%emt 0:00:03]} 42. g3 {[%emt 0:00:45]} Nf3+ {[%emt 0:00:30]} 43. Kg2 {[%emt 0:00:30]} Kc7 {[%emt 0:00:23]} 44. Rh6 {[%emt 0:00:15]} d4 {[%emt 0:00:14]} 45. b4 {[%emt 0:00:34]} d3 {[%emt 0:00:45]} 46. Rh1 {[%emt 0:00:02]} d2 {[%emt 0:00:59]} 47. Nxd2 {[%emt 0:01:24]} Rxh1 {[%emt 0:00:27]} 48. Nxf3 {[%emt 0:00:00]} Ra1 {[%emt 0:00:17]} 49. Nxg5 {[%emt 0:00:20]} Rxa2 {[%emt 0:00:11]} 50. Nh7 {[%emt 0:00:00]} Rc2 {[%emt 0:01:35]} 51. Nf6 {[%emt 0:00:04]} Rc4 {[%emt 0:00:00]} 52. b5 {[%emt 0:01:07]} Kd6 {[%emt 0:00:28]} 53. Kf1 {[%emt 0:00:30]} Ke6 {[%emt 0:00:30]} 54. Nh5 {[%emt 0:00:09]} Rc5 {[%emt 0:00:48]} 55. Nf4+ {[%emt 0:00:30]} Kf5 {[%emt 0:00:30]} 56. Ne2 {[%emt 0:00:00]} Ke5 {[%emt 0:00:29]} 57. Nf4 {[%emt 0:00:00]} Rxb5 {[%emt 0:00:28]} 58. Ke2 {[%emt 0:00:16]} Rb2+ {[%emt 0:00:30]} 59. Ke3 {[%emt 0:00:00]} Rb3+ {[%emt 0:00:00]} 60. Nd3+ {[%emt 0:00:00]} Kd5 {[%emt 0:00:26]} 61. Kd2 {[%emt 0:00:00]} Kd4 {[%emt 0:00:40]} 62. Ne1 {[%emt 0:00:00]} Rb2+ {[%emt 0:00:10]} 63. Nc2+ {[%emt 0:00:00]} Ke4 {[%emt 0:00:20]} 64. Kc3 {[%emt 0:00:17]} Rxc2+ {[%emt 0:00:30]} 65. Kxc2 {[%emt 0:00:00]} Kf3 {[%emt 0:00:00]} 0-1

[Event "10th Cesme Open-B 2024"]
[Site "Cesme"]
[Date "2024.06.29"]
[Round "8"]
[White "Hasirci, Ozgur Deniz"]
[Black "Rzayev, Askar Aliakbar"]
[Result "1-0"]
[ECO "B27"]
[WhiteElo "1903"]
[BlackElo "1967"]
[Annotator "RC"]
[PlyCount "127"]
[EventDate "2024.06.23"]
[EventType "swiss"]
[EventCountry "TUR"]
[SourceTitle "playchess.com"]
[Source "ChessBase"]
[SourceQuality "1"]
[TimeControl "5400+30"]

1. e4 {[%emt 0:01:00]} c5 {[%emt 0:01:00]} 2. Nf3 {[%emt 0:00:30]} g6 {[%emt 0:00:00]} 3. d4 {[%emt 0:07:30]} cxd4 {[%emt 0:01:00]} 4. Qxd4 {[%emt 0:00:00]} Nf6 {[%emt 0:00:00]} 5. e5 {[%emt 0:00:00]} Nc6 {[%emt 0:00:00]} 6. Qh4 {[%emt 0:00:00]} Nxe5 {[%emt 0:00:30]} 7. Nxe5 {[%emt 0:00:00]} Qa5+ {[%emt 0:00:30]} 8. Nc3 {[%emt 0:00:30]} Qxe5+ {[%emt 0:00:00]} 9. Be3 {[%emt 0:00:00]} Bg7 {[%emt 0:04:00]} 10. O-O-O {[%emt 0:00:00]} O-O {[%emt 0:01:30]} 11. Bc4 {[%emt 0:00:30]} d6 {[%emt 0:12:30]} 12. Bg5 {[%emt 0:08:30]} Be6 {[%emt 0:08:30]} 13. Rhe1 {[%emt 0:09:30]} Qf5 {[%emt 0:00:30]} 14. Bxe6 {[%emt 0:03:30]} fxe6 {[%emt 0:00:30]} 15. Rd3 {[%emt 0:04:30]} e5 {[%emt 0:04:30]} 16. Rf3 {[%emt 0:10:30]} Qe6 {[%emt 0:01:30]} 17. Rh3 {[%emt 0:01:30]} Rf7 {[%emt 0:05:30]} 18. f4 {[%emt 0:02:30]} Rc8 {[%emt 0:07:30]} 19. fxe5 {[%emt 0:13:30]} dxe5 {[%emt 0:01:30]} 20. Bxf6 {[%emt 0:08:30]} Bxf6 {[%emt 0:00:00]} 21. Qe4 {[%emt 0:00:30]} Bg5+ {[%emt 0:06:00]} 22. Kb1 {[%emt 0:00:30]} Bd2 {[%emt 0:00:00]} 23. Rd1 {[%emt 0:00:30]} Bxc3 {[%emt 0:00:00]} 24. Rxc3 {[%emt 0:00:00]} Rxc3 {[%emt 0:03:30]} 25. bxc3 {[%emt 0:00:00]} Qb6+ {[%emt 0:00:30]} 26. Kc1 {[%emt 0:00:30]} Qc7 {[%emt 0:00:30]} 27. c4 {[%emt 0:00:30]} e6 {[%emt 0:11:30]} 28. Re1 {[%emt 0:08:30]} Rf5 {[%emt 0:01:30]} 29. g3 {[%emt 0:08:58]} Qa5 {[%emt 0:03:30]} 30. Kb2 {[%emt 0:04:05]} Qb4+ {[%emt 0:00:30]} 31. Ka1 {[%emt 0:00:39]} Qd2 {[%emt 0:04:30]} 32. Kb1 {[%emt 0:00:30]} Rf2 {[%emt 0:00:30]} 33. Rc1 {[%emt 0:00:30]} Qb4+ {[%emt 0:00:30]} 34. Ka1 {[%emt 0:00:30]} Qc3+ {[%emt 0:00:30]} 35. Kb1 {[%emt 0:00:14]} Rf7 {[%emt 0:07:24]} 36. Re1 {[%emt 0:00:57]} Rd7 {[%emt 0:03:43]} 37. Rf1 {[%emt 0:01:39]} Rd6 {[%emt 0:01:36]} 38. c5 {[%emt 0:01:09]} Rd4 {[%emt 0:01:44]} 39. Qf3 {[%emt 0:00:00]} Qxf3 {[%emt 0:00:49]} 40. Rxf3 {[%emt 0:00:00]} Rc4 {[%emt 0:00:31]} 41. Rb3 {[%emt 0:00:13]} Rxc5 {[%emt 0:00:30]} 42. Rxb7 {[%emt 0:00:30]} a5 {[%emt 0:00:10]} 43. Re7 {[%emt 0:00:30]} h5 {[%emt 0:01:38]} 44. Kc1 {[%emt 0:00:45]} Kf8 {[%emt 0:02:04]} 45. Rxe6 {[%emt 0:00:30]} Kf7 {[%emt 0:00:30]} 46. Rd6 {[%emt 0:00:05]} Rb5 {[%emt 0:05:06]} 47. c3 {[%emt 0:00:47]} e4 {[%emt 0:01:15]} 48. Rd4 {[%emt 0:00:37]} Re5 {[%emt 0:00:14]} 49. Kd2 {[%emt 0:00:00]} Ke6 {[%emt 0:01:21]} 50. Ke3 {[%emt 0:03:10]} Kf5 {[%emt 0:00:46]} 51. h3 {[%emt 0:00:27]} g5 {[%emt 0:01:02]} 52. c4 {[%emt 0:00:55]} a4 {[%emt 0:00:17]} 53. Rd8 {[%emt 0:01:07]} Re7 {[%emt 0:01:16]} 54. Rd5+ {[%emt 0:01:29]} Kg6 {[%emt 0:00:06]} 55. Ra5 {[%emt 0:00:24]} Rd7 {[%emt 0:01:13]} 56. Kxe4 {[%emt 0:00:13]} Rd2 {[%emt 0:00:28]} 57. Rxa4 {[%emt 0:00:06]} Re2+ {[%emt 0:00:00]} 58. Kd5 {[%emt 0:00:38]} Re3 {[%emt 0:00:08]} 59. c5 {[%emt 0:00:11]} Rxg3 {[%emt 0:00:18]} 60. c6 {[%emt 0:00:18]} Rd3+ {[%emt 0:01:07]} 61. Kc5 {[%emt 0:00:25]} Rd8 {[%emt 0:01:01]} 62. c7 {[%emt 0:00:05]} Rf8 {[%emt 0:00:00]} 63. Kc6 {[%emt 0:00:07]} Kf5 {[%emt 0:00:32]} 64. Kb7 {[%emt 0:00:11]} 1-0

[Event "10th Cesme Open-B 2024"]
[Site "Cesme"]
[Date "2024.06.29"]
[Round "8"]
[White "Yildiz, Elif Zeren"]
[Black "Yilmaz, Kerem Tuna"]
[Result "1-0"]
[ECO "C50"]
[WhiteElo "1879"]
[BlackElo "1962"]
[Annotator "NA RC"]
[PlyCount "121"]
[EventDate "2024.06.23"]
[EventType "swiss"]
[EventCountry "TUR"]
[SourceTitle "playchess.com"]
[Source "ChessBase"]
[SourceQuality "1"]
[TimeControl "5400+30"]

1. e4 {[%emt 0:01:00]} e5 {[%emt 0:02:00]} 2. Nf3 {[%emt 0:00:30]} Nc6 {[%emt 0:00:30]} 3. Bc4 {[%emt 0:00:30]} Bc5 {[%emt 0:00:30]} 4. O-O {[%emt 0:00:30]} Nf6 {[%emt 0:00:00]} 5. d4 {[%emt 0:00:30]} Bxd4 {[%emt 0:01:00]} 6. Nxd4 {[%emt 0:00:30]} Nxd4 {[%emt 0:00:30]} 7. f4 {[%emt 0:00:30]} d6 {[%emt 0:00:30]} 8. fxe5 {[%emt 0:00:30]} dxe5 {[%emt 0:00:30]} 9. Bg5 {[%emt 0:00:30]} Qe7 {[%emt 0:00:30]} 10. Na3 {[%emt 0:00:00]} Ne6 {[%emt 0:00:00]} 11. Bxf6 {[%emt 0:00:00]} gxf6 {[%emt 0:00:00]} 12. Qf3 {[%emt 0:00:00]} Nf4 {[%emt 0:00:00]} 13. Kh1 {[%emt 0:00:00]} Bd7 {[%emt 0:35:00]} 14. g3 {[%emt 0:13:30]} Nh3 {[%emt 0:01:30]} 15. Qxf6 {[%emt 0:02:30]} Qxf6 {[%emt 0:00:30]} 16. Rxf6 {[%emt 0:00:30]} Ng5 {[%emt 0:00:30]} 17. Bd3 {[%emt 0:04:30]} Ke7 {[%emt 0:09:30]} 18. Raf1 {[%emt 0:06:30]} Bh3 {[%emt 0:01:30]} 19. R1f2 {[%emt 0:00:30]} Rad8 {[%emt 0:01:30]} 20. Rh6 {[%emt 0:05:30]} Rd6 {[%emt 0:08:30]} 21. Rh4 {[%emt 0:23:30]} Rhd8 {[%emt 0:15:30]} 22. Nc4 {[%emt 0:03:30]} Rxd3 {[%emt 0:00:30]} 23. cxd3 {[%emt 0:00:30]} Rxd3 {[%emt 0:00:30]} 24. Rd2 {[%emt 0:07:30]} Bf1 {[%emt 0:06:06]} 25. Rxd3 {[%emt 0:00:30]} Bxd3 {[%emt 0:00:30]} 26. Nd2 {[%emt 0:00:30]} f5 {[%emt 0:01:38]} 27. Kg2 {[%emt 0:07:30]} fxe4 {[%emt 0:00:41]} 28. Kf2 {[%emt 0:00:30]} Kf6 {[%emt 0:01:08]} 29. Ke3 {[%emt 0:00:00]} Kg6 {[%emt 0:06:38]} 30. g4 {[%emt 0:04:46]} c5 {[%emt 0:05:28]} 31. Rh5 {[%emt 0:01:31]} c4 {[%emt 0:01:04]} 32. h4 {[%emt 0:02:05]} Nf7 {[%emt 0:00:42]} 33. Nxe4 {[%emt 0:03:30]} b5 {[%emt 0:00:34]} 34. Nc5 {[%emt 0:01:13]} Bb1 {[%emt 0:01:23]} 35. a3 {[%emt 0:00:10]} a5 {[%emt 0:00:12]} 36. Nd7 {[%emt 0:00:08]} Nd6 {[%emt 0:00:50]} 37. Rxe5 {[%emt 0:00:21]} Kf7 {[%emt 0:00:25]} 38. Kd4 {[%emt 0:02:36]} b4 {[%emt 0:00:17]} 39. Rxa5 {[%emt 0:02:29]} c3 {[%emt 0:00:05]} 40. Ne5+ {[%emt 0:01:41]} Kg7 {[%emt 0:01:14]} 41. bxc3 {[%emt 0:00:30]} b3 {[%emt 0:00:00]} 42. Ra6 {[%emt 0:03:30]} Nb5+ {[%emt 0:00:36]} 43. Ke3 {[%emt 0:02:34]} Nxc3 {[%emt 0:00:10]} 44. Nc4 {[%emt 0:00:00]} Bc2 {[%emt 0:00:58]} 45. Nb2 {[%emt 0:00:00]} Nd5+ {[%emt 0:00:25]} 46. Kd4 {[%emt 0:00:11]} Nf4 {[%emt 0:00:39]} 47. a4 {[%emt 0:00:13]} Ne2+ {[%emt 0:01:12]} 48. Ke3 {[%emt 0:00:05]} Nc3 {[%emt 0:00:01]} 49. Rc6 {[%emt 0:00:58]} Nd1+ {[%emt 0:01:00]} 50. Nxd1 {[%emt 0:00:30]} Bxd1 {[%emt 0:00:00]} 51. Kf4 {[%emt 0:01:00]} b2 {[%emt 0:00:02]} 52. Rb6 {[%emt 0:00:30]} Bxa4 {[%emt 0:00:30]} 53. Rxb2 {[%emt 0:00:30]} Bd1 {[%emt 0:00:30]} 54. Rb7+ {[%emt 0:00:30]} Kh8 {[%emt 0:00:00]} 55. Kg5 {[%emt 0:00:00]} Bf3 {[%emt 0:00:00]} 56. Rc7 {[%emt 0:00:00]} Bd5 {[%emt 0:00:00]} 57. Kf6 {[%emt 0:00:00]} Bg8 {[%emt 0:00:00]} 58. g5 {[%emt 0:00:00]} Ba2 {[%emt 0:00:32]} 59. h5 {[%emt 0:00:00]} h6 {[%emt 0:00:35]} 60. g6 {[%emt 0:00:00]} Bb3 {[%emt 0:00:11]} 61. Rh7+ {[%emt 0:00:00]} 1-0

[Event "10th Cesme Open-B 2024"]
[Site "Cesme"]
[Date "2024.06.29"]
[Round "8"]
[White "Akkaya, Atakan"]
[Black "Korkmaz, Necmettin"]
[Result "1/2-1/2"]
[ECO "B51"]
[WhiteElo "1780"]
[BlackElo "1999"]
[Annotator "RC"]
[PlyCount "25"]
[EventDate "2024.06.23"]
[EventType "swiss"]
[EventCountry "TUR"]
[SourceTitle "playchess.com"]
[Source "ChessBase"]
[SourceQuality "1"]
[TimeControl "5400+30"]

1. e4 {[%emt 0:01:00]} c5 {[%emt 0:01:00]} 2. Nf3 {[%emt 0:00:30]} d6 {[%emt 0:00:30]} 3. Bb5+ {[%emt 0:00:30]} Nd7 {[%emt 0:00:30]} 4. O-O {[%emt 0:00:00]} Ngf6 {[%emt 0:03:30]} 5. Re1 {[%emt 0:01:00]} g6 {[%emt 0:03:30]} 6. c3 {[%emt 0:00:30]} a6 {[%emt 0:01:30]} 7. Bf1 {[%emt 0:03:30]} e5 {[%emt 0:13:30]} 8. d4 {[%emt 0:00:30]} Bg7 {[%emt 0:04:30]} 9. dxe5 {[%emt 0:07:30]} dxe5 {[%emt 0:02:30]} 10. Qd6 {[%emt 0:05:30]} Bf8 {[%emt 0:02:30]} 11. Qd1 {[%emt 0:05:30]} Bg7 {[%emt 0:00:30]} 12. Qd6 {[%emt 0:01:30]} Bf8 {[%emt 0:00:30]} 13. Qd1 {[%emt 0:02:30]} 1/2-1/2

[Event "10th Cesme Open-B 2024"]
[Site "Cesme"]
[Date "2024.06.29"]
[Round "8"]
[White "Tatlioglu, Ege"]
[Black "Kocakaplan, Emre"]
[Result "0-1"]
[ECO "D00"]
[WhiteElo "1632"]
[BlackElo "1944"]
[Annotator "RC"]
[PlyCount "188"]
[EventDate "2024.06.23"]
[EventType "swiss"]
[EventCountry "TUR"]
[SourceTitle "playchess.com"]
[Source "ChessBase"]
[SourceQuality "1"]
[TimeControl "5400+30"]

1. d4 {[%emt 0:01:00]} Nf6 {[%emt 0:01:00]} 2. Bg5 {[%emt 0:00:30]} d5 {[%emt 0:00:30]} 3. e3 {[%emt 0:00:00]} Nbd7 {[%emt 0:02:30]} 4. Nd2 {[%emt 0:01:00]} h6 {[%emt 0:00:30]} 5. Bh4 {[%emt 0:00:30]} e5 {[%emt 0:04:30]} 6. Ngf3 {[%emt 0:11:30]} e4 {[%emt 0:02:30]} 7. Ne5 {[%emt 0:08:30]} Bd6 {[%emt 0:03:30]} 8. Nxd7 {[%emt 0:04:30]} Bxd7 {[%emt 0:00:30]} 9. c4 {[%emt 0:02:30]} c6 {[%emt 0:17:30]} 10. a3 {[%emt 0:16:30]} O-O {[%emt 0:09:30]} 11. Be2 {[%emt 0:08:30]} Re8 {[%emt 0:04:30]} 12. Rc1 {[%emt 0:03:30]} a5 {[%emt 0:10:30]} 13. Nb1 {[%emt 0:04:30]} dxc4 {[%emt 0:05:30]} 14. Bxc4 {[%emt 0:00:30]} Bf5 {[%emt 0:01:30]} 15. Qb3 {[%emt 0:02:30]} Qe7 {[%emt 0:01:30]} 16. Nd2 {[%emt 0:01:30]} a4 {[%emt 0:04:30]} 17. Qc2 {[%emt 0:03:30]} Bc7 {[%emt 0:03:30]} 18. Be2 {[%emt 0:18:36]} Qe6 {[%emt 0:03:30]} 19. Bc4 {[%emt 0:00:23]} Nd5 {[%emt 0:01:30]} 20. O-O {[%emt 0:01:56]} Ba5 {[%emt 0:00:30]} 21. Bg3 {[%emt 0:01:24]} h5 {[%emt 0:04:12]} 22. b4 {[%emt 0:00:29]} Bd8 {[%emt 0:01:21]} 23. h4 {[%emt 0:00:42]} Qg6 {[%emt 0:00:30]} 24. Rfe1 {[%emt 0:03:05]} Nc7 {[%emt 0:08:27]} 25. Ba2 {[%emt 0:00:33]} Nb5 {[%emt 0:02:39]} 26. Nc4 {[%emt 0:00:11]} Be6 {[%emt 0:00:53]} 27. Ne5 {[%emt 0:01:21]} Qf5 {[%emt 0:01:40]} 28. Qb2 {[%emt 0:01:08]} Bc7 {[%emt 0:03:38]} 29. Rc5 {[%emt 0:03:30]} Bxa2 {[%emt 0:01:32]} 30. Qxa2 {[%emt 0:00:18]} Bxe5 {[%emt 0:00:36]} 31. Bxe5 {[%emt 0:00:24]} Qe6 {[%emt 0:00:10]} 32. d5 {[%emt 0:01:12]} Qxe5 {[%emt 0:00:30]} 33. dxc6 {[%emt 0:00:30]} Nc3 {[%emt 0:00:29]} 34. Rxe5 {[%emt 0:00:16]} Nxa2 {[%emt 0:00:10]} 35. cxb7 {[%emt 0:00:00]} Rab8 {[%emt 0:00:29]} 36. Rxe8+ {[%emt 0:00:44]} Rxe8 {[%emt 0:00:30]} 37. Ra1 {[%emt 0:00:30]} Nc3 {[%emt 0:00:30]} 38. Kf1 {[%emt 0:00:30]} Nb5 {[%emt 0:00:01]} 39. Rc1 {[%emt 0:00:25]} Nd6 {[%emt 0:00:30]} 40. Rc6 {[%emt 0:00:30]} Nxb7 {[%emt 0:00:30]} 41. Ra6 {[%emt 0:00:00]} Rc8 {[%emt 0:00:30]} 42. Rxa4 {[%emt 0:00:19]} g6 {[%emt 0:01:11]} 43. Ra6 {[%emt 0:00:27]} Kf8 {[%emt 0:00:58]} 44. Rb6 {[%emt 0:00:17]} Nd8 {[%emt 0:00:04]} 45. a4 {[%emt 0:00:42]} Ke7 {[%emt 0:00:00]} 46. a5 {[%emt 0:00:01]} Kd7 {[%emt 0:00:24]} 47. b5 {[%emt 0:00:23]} Rc1+ {[%emt 0:01:15]} 48. Ke2 {[%emt 0:00:15]} Ra1 {[%emt 0:00:05]} 49. a6 {[%emt 0:00:07]} Ra5 {[%emt 0:00:06]} 50. Rb8 {[%emt 0:02:36]} Kc7 {[%emt 0:00:00]} 51. Ra8 {[%emt 0:00:41]} Rxb5 {[%emt 0:01:33]} 52. a7 {[%emt 0:00:02]} Ra5 {[%emt 0:00:00]} 53. f3 {[%emt 0:00:41]} Ra2+ {[%emt 0:00:40]} 54. Kf1 {[%emt 0:00:07]} exf3 {[%emt 0:00:35]} 55. gxf3 {[%emt 0:00:01]} Kd7 {[%emt 0:00:35]} 56. e4 {[%emt 0:00:38]} Ke7 {[%emt 0:00:11]} 57. f4 {[%emt 0:01:09]} Nc6 {[%emt 0:00:09]} 58. Rc8 {[%emt 0:00:00]} Nxa7 {[%emt 0:00:41]} 59. Rc7+ {[%emt 0:00:00]} Kf6 {[%emt 0:00:01]} 60. e5+ {[%emt 0:00:31]} Ke6 {[%emt 0:00:12]} 61. Rb7 {[%emt 0:00:30]} Nc6 {[%emt 0:00:23]} 62. Rc7 {[%emt 0:00:20]} Rc2 {[%emt 0:00:27]} 63. Rc8 {[%emt 0:00:15]} Nd4 {[%emt 0:01:05]} 64. Re8+ {[%emt 0:00:08]} Kd7 {[%emt 0:00:00]} 65. Ra8 {[%emt 0:00:34]} Ne6 {[%emt 0:00:43]} 66. Ra4 {[%emt 0:00:30]} Rh2 {[%emt 0:00:15]} 67. Ra7+ {[%emt 0:00:12]} Ke8 {[%emt 0:00:38]} 68. Ra8+ {[%emt 0:00:30]} Ke7 {[%emt 0:00:08]} 69. Ra7+ {[%emt 0:00:13]} Kf8 {[%emt 0:00:00]} 70. f5 {[%emt 0:00:08]} gxf5 {[%emt 0:00:01]} 71. Ra4 {[%emt 0:00:30]} f4 {[%emt 0:00:00]} 72. Kg1 {[%emt 0:00:12]} Rxh4 {[%emt 0:00:00]} 73. Kf2 {[%emt 0:00:13]} Rh3 {[%emt 0:00:17]} 74. Ra8+ {[%emt 0:00:30]} Kg7 {[%emt 0:00:30]} 75. Ra1 {[%emt 0:00:30]} Re3 {[%emt 0:00:30]} 76. Rg1+ {[%emt 0:00:30]} Kh6 {[%emt 0:00:30]} 77. Rg8 {[%emt 0:00:30]} Rxe5 {[%emt 0:00:30]} 78. Kf3 {[%emt 0:00:30]} Re3+ {[%emt 0:00:30]} 79. Kf2 {[%emt 0:00:30]} h4 {[%emt 0:00:30]} 80. Rh8+ {[%emt 0:00:30]} Kg5 {[%emt 0:00:30]} 81. Rh7 {[%emt 0:00:30]} f6 {[%emt 0:00:30]} 82. Rh8 {[%emt 0:00:30]} Kg4 {[%emt 0:00:30]} 83. Rh6 {[%emt 0:00:30]} Ng5 {[%emt 0:00:30]} 84. Kf1 {[%emt 0:00:30]} f5 {[%emt 0:00:30]} 85. Rg6 {[%emt 0:00:30]} h3 {[%emt 0:00:30]} 86. Kg1 {[%emt 0:00:30]} Re2 {[%emt 0:00:00]} 87. Rh6 {[%emt 0:00:00]} Kg3 {[%emt 0:00:00]} 88. Kf1 {[%emt 0:00:00]} Rf2+ {[%emt 0:00:00]} 89. Ke1 {[%emt 0:00:00]} Nf3+ {[%emt 0:00:00]} 90. Kd1 {[%emt 0:00:00]} h2 {[%emt 0:00:00]} 91. Rg6+ {[%emt 0:00:00]} Kh4 {[%emt 0:00:00]} 92. Rh6+ {[%emt 0:00:00]} Kg5 {[%emt 0:00:00]} 93. Rh3 {[%emt 0:00:00]} Rf1+ {[%emt 0:00:00]} 94. Ke2 {[%emt 0:00:00]} h1=Q {[%emt 0:00:00]} 0-1